[Event "Azerbaijan Women Championship 2022"]
[Site "Baku"]
[Date "2022.05.18"]
[Round "2.2"]
[White "Abdulla, Khayala"]
[Black "Hajiyeva, Laman"]
[Result "1/2-1/2"]
[ECO "C03"]
[WhiteElo "2219"]
[BlackElo "1971"]
[Annotator "TA"]
[PlyCount "91"]
[EventDate "2022.05.17"]
[EventType "tourn"]
[EventCountry "AZE"]
[SourceTitle "playchess.com"]
[Source "ChessBase"]
[SourceQuality "1"]
[TimeControl "40/5400+30:1800+30"]

{[%evp 9,91,42,38,46,51,51,40,47,69,69,81,78,116,74,90,102,85,52,52,55,52,47,46,13,21,0,4,0,15,15,15,13,13,21,14,12,13,-17,-34,-53,-47,-52,0,0,0,0,0,-22,-31,-95,-95,-102,-82,-97,-103,-106,-104,-89,-14,-10,-17,-33,0,-157,-150,-62,-178,-162,-71,-74,-8,-227,-218,-248,-166,-173,-147,-95,0,0,0,0,0,0]} 1. e4 {[%emt 0:00:25]} e6 {[%emt 0:00:09]} 2. d4 {[%emt 0:00:05]} d5 {[%emt 0:00:07]} 3. Nd2 {[%emt 0:00:12]} Be7 {[%emt 0:00:15]} 4. Ngf3 {[%emt 0:00:27]} c5 {[%emt 0:00:45]} 5. exd5 {[%emt 0:00:52]} exd5 {[%emt 0:01:12]} 6. dxc5 {[%emt 0:00:25] C03: French Tarrasch: Unusual Black 3rd moves.} Nf6 {[%emt 0:02:12]} 7. Nb3 {[%emt 0:00:59]} O-O {[%emt 0:02:18]} 8. Be3 {[%emt 0:02:34][%cal Bc1e3,Be3d4,Bd4e5][%mdl 32] [#] White is slightly better.} Ng4 $146 {[%emt 0:16:33]} ({Predecessor:} 8... Nc6 9. c3 Bg4 10. Be2 Qc7 11. O-O Rad8 12. h3 Bh5 13. Nfd4 Bg6 14. Re1 Ne4 {1-0 (27) Benjamin,J (2577)-Shabalov,A (2601) Seattle 2000}) 9. Bd4 {[%emt 0:04:04]} a5 {[%emt 0:07:09]} 10. a4 {[%emt 0:09:22]} Na6 {[%emt 0:04:15]} 11. Be2 {[%emt 0:05:52]} Qc7 {[%emt 0:05:31][%cal Ra6c5]} 12. h3 {[%emt 0:03:18]} Nf6 {[%emt 0:01:46]} 13. Be5 {[%emt 0:04:14]} Qd8 {[%emt 0:01:21]} 14. O-O {[%emt 0:12:23]} Ne4 {[%emt 0:04:40]} 15. c4 {[%emt 0:16:37]} dxc4 {[%emt 0:08:33]} 16. Qxd8 {[%emt 0:04:30]} Rxd8 {[%emt 0:00:39]} 17. Bxc4 {[%emt 0:04:48]} Naxc5 {[%emt 0:04:52]} 18. Bc7 {[%emt 0:04:31]} Rd7 {[%emt 0:05:37]} 19. Bb6 {[%emt 0:01:55] With the idea Rfe1.} Nxb3 {[%emt 0:07:16]} 20. Bxb3 {[%emt 0:00:05]} Nd2 {[%emt 0:01:33]} 21. Nxd2 {[%emt 0:02:26]} Rxd2 {[%emt 0:00:06]} 22. Rfe1 {[%emt 0:02:40]} Kf8 {[%emt 0:06:24]} 23. Re3 {[%emt 0:02:22]} Ra6 {[%emt 0:05:47]} 24. Bc7 {[%emt 0:06:32]} Bc5 $1 {[%emt 0:03:36]} 25. Rf3 {[%emt 0:02:38]} Be6 {[%emt 0:00:46]} (25... Rf6 $1 $15 26. Rxf6 gxf6 27. Bxa5 Rxb2) 26. Bxe6 $11 {[%emt 0:02:40]} Rxe6 {[%emt 0:00:05]} 27. Bxa5 {[%emt 0:00:32]} Rxb2 {[%emt 0:00:53]} 28. Rd1 {[%emt 0:02:39]} Ree2 {[%emt 0:03:39]} 29. Rd7 {[%emt 0:01:51]} (29. Be1 $15) 29... f6 $17 {[%emt 0:01:37]} ({Much worse is} 29... Bxf2+ $6 30. Kf1 f6 31. Rxb7 $11) 30. Kh2 {[%emt 0:02:30]} Rxf2 {[%emt 0:03:39]} 31. Rg3 {[%emt 0:00:38]} g5 {[%emt 0:01:06]} 32. Bc7 {[%emt 0:00:19]} h5 {[%emt 0:00:43]} (32... Rf1 {looks sharper.} 33. Rgd3 Bg1+ 34. Kg3 h5) 33. h4 {[%emt 0:00:45]} g4 {[%emt 0:00:29]} ({Black should play} 33... Rf1 $17 {Hoping for ...Bg1+.} 34. hxg5 Bg1+ 35. Kh3 Bf2) 34. Rd5 $11 {[%emt 0:00:14][%csl LRc5,LRh5]} Be7 {[%emt 0:01:03] Strongly threatening ...f5.} 35. Rxh5 {[%emt 0:00:40]} f5 {[%emt 0:00:08]} (35... Rbc2 $5 {[%cal Rc2c7]} 36. Kg1 (36. Bb6 Rf1 $17) 36... Rfd2 $11) 36. Be5 $2 {[%emt 0:00:43]} ({Only move:} 36. Rh8+ $11 Kf7 37. Rh7+ Kf6 38. Bb6) 36... Rbe2 $17 {[%emt 0:00:34]} 37. Rh8+ {[%emt 0:00:34]} Kf7 {[%emt 0:00:03]} 38. Rh7+ {[%emt 0:00:02]} Ke8 {[%emt 0:01:15]} (38... Ke6 $19 {is more deadly.} 39. Bb8 Kf6) 39. Bb8 {[%emt 0:00:52]} Bc5 {[%emt 0:00:34]} (39... Kf8 $17 {White must now prevent ...Kg8.} 40. Kg1 b6) 40. Rh8+ {[%emt 0:00:00]} (40. Rxb7 $11 {and White stays safe.} Be7 41. h5) 40... Kf7 $1 $19 {[%emt 0:00:00] aiming for ...Rf1.} 41. Rh7+ {[%emt 0:06:31]} Kf6 {[%emt 0:13:29] ...Rf1 is the strong threat.} 42. Rxb7 {[%emt 0:02:43]} Rf1 $1 {[%emt 0:05:53]} 43. Rc3 {[%emt 0:02:05] [#]} Bg1+ {[%emt 0:06:14]} (43... Rg1 $1 $17 {[%csl Gg1][%cal Re2g2]} 44. Rg3 Rc1) 44. Kg3 $11 {[%emt 0:00:15] Threatens to win with Rc6+. The position is equal.} Bf2+ {[%emt 0:01:49]} 45. Kh2 {[%emt 0:00:18]} Bg1+ {[%emt 0:02:50]} 46. Kg3 {[%emt 0:00:08] Weighted Error Value: White=0.22 (precise) /Black=0.19 (very precise)} 1/2-1/2

[Event "Azerbaijan Women Championship 2022"]
[Site "Baku"]
[Date "2022.05.18"]
[Round "2.3"]
[White "Mammadova, Gulnar"]
[Black "Beydullayeva, Govhar"]
[Result "0-1"]
[ECO "B23"]
[WhiteElo "2387"]
[BlackElo "2384"]
[Annotator "TA"]
[PlyCount "84"]
[EventDate "2022.05.17"]
[EventType "tourn"]
[EventCountry "AZE"]
[SourceTitle "playchess.com"]
[Source "ChessBase"]
[SourceQuality "1"]
[TimeControl "40/5400+30:1800+30"]

{[%evp 9,84,0,2,5,0,0,14,20,33,25,22,12,29,7,14,10,8,16,15,8,14,6,13,13,13,12,9,13,10,0,0,0,0,-41,-52,-49,-64,-51,0,-1559,-1470,-1875,-1886,-1934,-250,-238,-231,-251,-110,-110,-110,-110,-108,-108,-109,-109,-109,-109,-107,-100,-77,-130,-125,-180,-119,-470,-481,-431,-396,-768,-711,-1156,-1035,-963,-844,-1073,-1028]} 1. e4 {[%emt 0:00:02]} c5 {[%emt 0:04:55]} 2. Nc3 {[%emt 0:00:17]} d6 {[%emt 0:00:18]} 3. d4 {[%emt 0:00:09]} cxd4 {[%emt 0:00:04]} 4. Qxd4 {[%emt 0:00:06]} Nc6 {[%emt 0:00:04]} 5. Qd2 {[%emt 0:00:09]} g6 {[%emt 0:00:03]} 6. b3 {[%emt 0:00:09] B23: Closed Sicilian: Lines without g3.} Bh6 {[%emt 0:00:06]} 7. f4 {[%emt 0:00:12]} f5 {[%emt 0:00:11]} 8. Bb2 {[%emt 0:00:32] The position is equal.} Nf6 {[%emt 0:00:33]} 9. Bd3 {[%emt 0:00:43]} Qa5 {[%emt 0:00:39]} 10. exf5 {[%emt 0:00:26]} Bxf5 {[%emt 0:00:22]} 11. Nge2 {[%emt 0:00:07]} O-O-O {[%emt 0:00:21]} 12. O-O-O {[%emt 0:00:16]} d5 {[%emt 0:00:26]} 13. Bxf5+ {[%emt 0:02:20]} gxf5 {[%emt 0:00:04]} 14. Qe3 {[%emt 0:00:25] Prevents d4. Black must now prevent Qe6+.} e5 {[%emt 0:01:57]} 15. Qd3 {[%emt 0:00:49]} (15. Qh3 Ng4 $15) 15... Rhf8 {[%emt 0:03:38]} 16. Qxf5+ {[%emt 0:20:56]} Kb8 {[%emt 0:01:02]} 17. Qh3 {[%emt 0:04:00]} Bxf4+ {[%emt 0:01:40]} 18. Nxf4 {[%emt 0:03:41]} exf4 {[%emt 0:00:02] [#]} 19. Qf3 $146 {[%emt 0:02:39]} ({Predecessor:} 19. a4 a6 20. Qf3 d4 21. Ne2 Ne5 22. Qf1 Nfg4 23. Nxd4 Ne3 24. Qe1 Qc7 25. Kb1 Rxd4 26. Rxd4 Qxc2+ {½-½ (33) Guevara I Pijoan,J (2310)-De Andres Senra,S (2139) ICCF email 2020}) 19... d4 $36 {[%emt 0:24:03][%mdl 2048] Black is pushing.} 20. Ne2 {[%emt 0:08:30][%cal Re2d4]} Nd5 {[%emt 0:08:50]} 21. Nxd4 {[%emt 0:02:29] Strongly threatening Ne6.} Ncb4 $1 {[%emt 0:01:57] Pair of Knights!} 22. Ne2 {[%emt 0:16:27]} Rc8 $1 {[%emt 0:10:36]} (22... Qxa2 23. Nc3 Qa5 24. Nxd5 Rxd5 25. Rxd5 Qxd5 26. Rf1 $14) 23. c4 {[%emt 0:05:11]} Ne3 {[%emt 0:08:18]} ({Black should try} 23... Nxa2+ $15 24. Kb1 Ne3) 24. Rd4 $2 {[%emt 0:10:43][%mdl 8192]} ({Don't blunder} 24. Rd7 $2 Nxa2+ 25. Kb1 Qf5+ 26. Kxa2 Qxd7 $19) (24. a3 $11 Na6 25. Nxf4 (25. Rd7 $2 Nc5 $19) 25... Nxd1 26. Rxd1) 24... Qxa2 $19 {[%emt 0:09:50]} ({Not} 24... Nxa2+ 25. Kb1 $11) 25. Rd7 {[%emt 0:02:39]} Rc6 {[%emt 0:05:05]} (25... Rc7 $2 26. Qxf4 $1 {[%mdl 512]} Qxb2+ 27. Kxb2 $18) 26. Rhd1 {[%emt 0:06:16]} Nxd1 $2 {[%emt 0:06:00]} (26... Qxb3 {[%csl Gb4,Ge3][%cal Rb3c2]} 27. R1d2 Qxc4+ 28. Nc3 Na2+ 29. Kb1 Nxc3+ 30. Bxc3 Qxc3) 27. Rxd1 {[%emt 0:00:13]} Qa5 {[%emt 0:01:26]} 28. Qe4 {[%emt 0:02:42]} Rcc8 {[%emt 0:02:56]} ({Weaker is} 28... Na2+ 29. Kb1 Nb4 30. Qe5+ Qxe5 31. Bxe5+ Kc8 32. Nc3 $17) (28... Ka8 $19 {...Rcc8 is the strong threat.} 29. Rd7 Rc7) 29. Qe5+ $17 {[%emt 0:02:39]} Qxe5 {[%emt 0:00:56]} 30. Bxe5+ {[%emt 0:00:02]} Ka8 {[%emt 0:00:04]} 31. Bd6 {[%emt 0:01:32]} Rfe8 {[%emt 0:00:07]} 32. Nxf4 {[%emt 0:00:27]} a5 {[%emt 0:01:11]} 33. Bxb4 {[%emt 0:04:40]} axb4 {[%emt 0:00:04][%mdl 4096] Endgame KRR-KRN} 34. Nd5 {[%emt 0:00:32]} Rc6 {[%emt 0:03:00] Inhibits Nb6+.} 35. Nxb4 {[%emt 0:01:14] [#]} (35. Rd2 $142) 35... Rh6 $1 {[%emt 0:00:05]} 36. h3 {[%emt 0:01:12] [#]} (36. Nd5 $17 Re2 37. Rd2 Rxd2 38. Kxd2) 36... Re2 {[%emt 0:00:10]} (36... Rg8 $1 $19 {[%cal Rg8g2]} 37. Rd2 Rb6) 37. c5 $2 {[%emt 0:02:30][%mdl 8192] This move loses the game for White.} (37. Rd2 $17 {is more resistant.} Rxd2 38. Kxd2) 37... Rxg2 $19 {[%emt 0:01:10]} 38. Rd3 {[%emt 0:00:03]} Rh2 {[%emt 0:02:02]} 39. Nd5 $2 {[%emt 0:00:53]} (39. h4) 39... R6xh3 {[%emt 0:00:27] Black is clearly winning.} 40. Nb6+ {[%emt 0:00:00]} Ka7 {[%emt 0:00:00]} 41. Rd4 {[%emt 0:01:39]} Rc3+ {[%emt 0:00:19]} 42. Kd1 {[%emt 0:00:04]} Rxc5 {[%emt 0:00:06] Weighted Error Value: White=0.71/Black=0.22 (precise)} 0-1

[Event "Azerbaijan Women Championship 2022"]
[Site "Baku"]
[Date "2022.05.18"]
[Round "2.4"]
[White "Allahverdiyeva, Ayan"]
[Black "Fataliyeva, Ulviyya"]
[Result "0-1"]
[ECO "B12"]
[WhiteElo "2120"]
[BlackElo "2348"]
[Annotator "TA"]
[PlyCount "85"]
[EventDate "2022.05.17"]
[EventType "tourn"]
[EventCountry "AZE"]
[SourceTitle "playchess.com"]
[Source "ChessBase"]
[SourceQuality "1"]
[TimeControl "40/5400+30:1800+30"]

{[%evp 9,85,29,42,33,47,5,15,30,71,64,60,70,60,0,0,-24,-20,-31,-29,-89,-98,-85,-104,-96,-101,-128,-133,-128,-129,-186,-161,-204,-207,-202,-199,-203,-215,-192,-182,-200,-151,-300,-179,-407,-413,-400,-403,-407,-354,-352,-360,-479,-453,-450,-440,-540,0,0,0,-548,-541,-522,-448,-565,-532,-566,-491,-581,-580,-630,-544,-585,-594,-580,-577,-584,-584,-1316]} 1. e4 {[%emt 0:00:59]} c6 {[%emt 0:01:43]} 2. d4 {[%emt 0:01:35]} d5 {[%emt 0:00:06]} 3. e5 {[%emt 0:00:33]} c5 {[%emt 0:00:04]} 4. dxc5 {[%emt 0:00:04]} Nc6 {[%emt 0:00:04]} 5. Nf3 {[%emt 0:00:45]} Bg4 {[%emt 0:00:05]} 6. c3 {[%emt 0:01:06] B12: Caro-Kann: Advance Variation.} e6 {[%emt 0:00:11]} 7. b4 {[%emt 0:03:36]} a5 {[%emt 0:01:51]} 8. Bb5 {[%emt 0:02:50] The position is equal.} Qc7 {[%emt 0:04:50]} 9. O-O {[%emt 0:08:39]} Bxf3 {[%emt 0:12:47]} 10. Qxf3 {[%emt 0:00:05] [#]} (10. gxf3 axb4 11. Qd4 bxc3 12. Nxc3 Nge7 $17) 10... Qxe5 $146 {[%emt 0:00:43]} ({Predecessor:} 10... Nge7 11. Nd2 Ng6 12. c4 Ngxe5 13. Qf4 Be7 14. Bb2 f6 15. cxd5 exd5 16. a3 O-O {½-½ (41) Figura,A (1970)-Cardoso Garcia,S (1981) LSS email 2011}) 11. Bd2 {[%emt 0:09:19]} (11. Bf4 $14 Qf5 12. g4) 11... Nf6 $11 {[%emt 0:12:01][%cal Bg8f6,Bf6e4,Be4c3][%mdl 32]} 12. Re1 {[%emt 0:16:52]} Ne4 {[%emt 0:00:22] ...axb4 is the strong threat.} 13. Bf4 {[%emt 0:11:41]} Qf6 {[%emt 0:02:06]} 14. Nd2 {[%emt 0:21:21]} (14. Bxc6+ $11 {keeps the balance.} bxc6 15. Rxe4 dxe4 16. Qxe4) 14... Nxc3 $17 {[%emt 0:09:06]} 15. Bxc6+ {[%emt 0:00:23]} bxc6 {[%emt 0:00:02]} 16. Qe3 {[%emt 0:00:33] And now Be5 would win.} axb4 {[%emt 0:03:50] aiming for ...d4.} 17. Be5 {[%emt 0:03:48] [#] Prevents d4.} Qf5 {[%emt 0:21:45]} 18. a3 {[%emt 0:02:12]} f6 {[%emt 0:04:12]} 19. Bg3 {[%emt 0:04:33]} (19. Bd4 $17) 19... Kf7 {[%emt 0:09:29] White must now prevent ...e5.} 20. axb4 {[%emt 0:02:18]} d4 {[%emt 0:00:34]} ({Stronger than} 20... Rxa1 21. Rxa1 d4 22. Qe1 $17 (22. Ra7+ Be7 $17)) 21. Qf3 {[%emt 0:04:13]} ({Avoid the trap} 21. Qxd4 $2 Rxa1 22. Qd7+ Be7 23. Rxa1 Rd8 24. Qxc6 Ne2+ 25. Kh1 Rxd2 $19) 21... Qxf3 {[%emt 0:00:36]} 22. Nxf3 {[%emt 0:00:15]} Rxa1 {[%emt 0:01:14]} 23. Rxa1 {[%emt 0:00:03] [#]} e5 $1 {[%emt 0:00:14]} 24. Ra8 {[%emt 0:01:39][%cal Og3e5]} Rg8 {[%emt 0:00:50] Hoping for ...Be7.} 25. Rc8 {[%emt 0:01:09]} (25. Bxe5 $17 {only move.} fxe5 26. Nxe5+ Ke6 27. f4) 25... Nd5 {[%emt 0:01:10]} (25... Be7 $142 26. Rxc6 Rb8) 26. Rxc6 {[%emt 0:01:23]} (26. Bxe5 Ne7 27. Rd8 fxe5 28. Nxe5+ Kf6 29. Nf3) 26... Nxb4 $19 {[%emt 0:00:03]} 27. Rc7+ {[%emt 0:01:07]} Be7 {[%emt 0:01:03]} 28. Rb7 {[%emt 0:00:48]} Nc6 {[%emt 0:01:56]} 29. Nd2 {[%emt 0:00:37]} Ra8 {[%emt 0:00:59]} 30. h3 {[%emt 0:00:32]} Ra1+ {[%emt 0:02:28]} 31. Kh2 {[%emt 0:00:10]} Ke6 {[%emt 0:01:50]} 32. Rc7 {[%emt 0:00:00]} Kd5 {[%emt 0:00:46]} 33. Rd7+ $1 {[%emt 0:00:08]} Ke6 {[%emt 0:00:16]} 34. Rc7 {[%emt 0:00:01]} Nb4 {[%emt 0:00:52] Black is clearly winning.} 35. Rb7 {[%emt 0:02:04]} Nd5 {[%emt 0:01:09]} 36. Nb3 {[%emt 0:00:01]} Ra2 {[%emt 0:00:21]} 37. c6 {[%emt 0:01:02]} Rc2 {[%emt 0:01:05]} 38. f4 {[%emt 0:00:35]} Rxc6 {[%emt 0:01:12]} 39. Rb5 {[%emt 0:00:23]} g6 {[%emt 0:01:28]} 40. fxe5 {[%emt 0:00:00]} fxe5 {[%emt 0:00:00]} 41. Nd2 {[%emt 0:06:38]} Bf6 {[%emt 0:02:54]} 42. Ra5 {[%emt 0:00:36]} Ne3 {[%emt 0:02:28]} 43. Nf3 {[%emt 0:01:37] Weighted Error Value: White=0.37/Black=0.25 (precise)} 0-1

[Event "Azerbaijan Women Championship 2022"]
[Site "Baku"]
[Date "2022.05.19"]
[Round "3.1"]
[White "Hajiyeva, Laman"]
[Black "Allahverdiyeva, Ayan"]
[Result "1/2-1/2"]
[ECO "B22"]
[WhiteElo "1971"]
[BlackElo "2120"]
[Annotator "TA"]
[PlyCount "138"]
[EventDate "2022.05.17"]
[EventType "tourn"]
[EventCountry "AZE"]
[SourceTitle "playchess.com"]
[Source "ChessBase"]
[SourceQuality "1"]
[TimeControl "40/5400+30:1800+30"]

{[%evp 22,138,0,0,0,0,0,0,0,0,4,0,0,0,0,0,0,0,9,0,48,48,54,12,14,13,13,9,384,175,170,171,178,170,179,127,150,133,174,155,184,189,288,282,264,257,279,268,462,444,4802,148,148,148,148,148,148,148,177,177,177,148,148,148,148,148,177,148,148,148,148,148,148,148,148,148,177,148,148,148,148,148,177,136,177,136,136,136,136,90,90,92,92,88,88,88,136,136,136,113,120,92,177,92,92,92,177,0,90,0,177,143,136,37,37,26,64,8,31]} 1. e4 {[%emt 0:00:15]} c5 {[%emt 0:00:04]} 2. c3 {[%emt 0:00:16]} Nf6 {[%emt 0:00:05]} 3. e5 {[%emt 0:00:23]} Nd5 {[%emt 0:00:03]} 4. d4 {[%emt 0:00:50]} cxd4 {[%emt 0:00:04]} 5. cxd4 {[%emt 0:00:23]} d6 {[%emt 0:00:03]} 6. Nf3 {[%emt 0:01:10]} Nc6 {[%emt 0:01:15]} 7. Bc4 {[%emt 0:01:00]} Nb6 {[%emt 0:00:04]} 8. Bb5 {[%emt 0:02:14]} dxe5 {[%emt 0:00:08]} 9. Nxe5 {[%emt 0:01:46]} Bd7 {[%emt 0:00:03]} 10. Nxd7 {[%emt 0:01:49]} Qxd7 {[%emt 0:00:01]} 11. Nc3 {[%emt 0:01:21]} e6 {[%emt 0:00:27]} 12. O-O {[%emt 0:00:53]} Rd8 {[%emt 0:00:04] B22: Sicilian: 2 c3.} 13. Be3 {[%emt 0:03:42]} Be7 {[%emt 0:00:03]} 14. Qb3 {[%emt 0:01:41]} O-O {[%emt 0:00:06][%cal Oc6d4]} 15. Rfd1 {[%emt 0:06:34][%cal Od4d5]} Qc8 {[%emt 0:00:05]} 16. Rac1 {[%emt 0:03:58] has lost popularity (16.Na4).} Na5 {[%emt 0:00:04]} 17. Qc2 {[%emt 0:00:59][%cal Od4d5]} Nac4 {[%emt 0:00:03]} 18. Qe2 {[%emt 0:06:54]} Nxe3 {[%emt 0:04:02]} 19. Qxe3 {[%emt 0:03:35]} Qb8 {[%emt 0:00:06]} 20. d5 {[%emt 0:15:20][%cal Bd4d5,Bd5e6,Be6f7][%mdl 32] [#]} Bd6 $146 {[%emt 0:01:11]} (20... e5 21. Bf1 Kh8 22. g4 Kg8 23. h3 h6 24. Rc2 Bg5 25. Qc5 Na4 26. Qb4 Nxc3 27. bxc3) (20... e5 $11 {might be stronger.}) ({Predecessor:} 20... e5 21. Bf1 Kh8 22. g4 Kg8 23. h3 h6 24. Rc2 Bg5 25. Qc5 Na4 26. Qb4 Nxc3 27. bxc3 {½-½ (35) Salati,P (2318)-Palladino,M (2326) ICCF email 2019}) 21. dxe6 $14 {[%emt 0:07:47] e7 is the strong threat.} Bxh2+ {[%emt 0:12:07]} 22. Kh1 {[%emt 0:04:11]} Bf4 $1 {[%emt 0:04:58] [#]} 23. Rxd8 $1 {[%emt 0:05:21]} Rxd8 {[%emt 0:01:08]} 24. exf7+ {[%emt 0:02:28]} Kh8 $2 {[%emt 0:16:47][%mdl 8192] [#]} (24... Kf8 $1 $11 {and Black has nothing to worry.} 25. Qc5+ Qd6 26. Qxd6+ Rxd6) 25. Be8 {[%emt 0:09:41]} (25. Qe6 $142 $1) 25... Nd7 $18 {[%emt 0:22:30] [#]} 26. Qe7 {[%emt 0:04:17]} Bd6 {[%emt 0:01:13]} 27. Qe2 {[%emt 0:01:55] aiming for Bxd7.} Nf6 {[%emt 0:01:45][%cal Rf6e8]} 28. Re1 $40 {[%emt 0:01:17][%mdl 128] White has strong attack.} (28. Ba4 $1 $18) 28... Bf8 $16 {[%emt 0:00:04]} 29. g3 {[%emt 0:07:14]} a6 {[%emt 0:00:07]} 30. Ba4 {[%emt 0:00:39]} b5 {[%emt 0:03:20]} 31. Bb3 {[%emt 0:00:13]} b4 {[%emt 0:03:18]} (31... g6 $142 32. Kg1 Kg7) 32. Ne4 $18 {[%emt 0:01:45] Strongly threatening Nxf6.} Qe5 {[%emt 0:01:55]} 33. Nxf6 {[%emt 0:01:39]} Qxf6 {[%emt 0:00:02]} 34. Kg1 {[%emt 0:00:48]} a5 $2 {[%emt 0:00:33]} (34... g6 35. Qe8 Kg7) 35. Qe5 {[%emt 0:01:32]} ({Resist} 35. Qe8 g6 36. Re6 Qd4 $18) 35... Rd2 {[%emt 0:04:54] [#]} (35... a4 $142) 36. Qxf6 $2 {[%emt 0:00:08] Active counter play!} (36. Qc5 $3 $18 {[%cal Rc5f8][%mdl 512] is the precise move to win.} Qxf2+ 37. Qxf2 Rxf2 38. Kxf2) 36... gxf6 {[%emt 0:00:02][%mdl 4096] Endgame KRB-KRB} 37. Re8 {[%emt 0:00:21]} Kg7 {[%emt 0:00:10]} 38. Ra8 $1 {[%emt 0:00:17]} Rxb2 {[%emt 0:08:50]} 39. Rxa5 {[%emt 0:00:05]} Kg6 {[%emt 0:00:07]} 40. Ra8 {[%emt 0:00:00]} Kg7 {[%emt 0:00:00]} 41. Rd8 {[%emt 0:01:07]} Re2 {[%emt 0:15:49]} 42. Kg2 {[%emt 0:00:51]} Re5 {[%emt 0:02:06]} 43. Kf3 {[%emt 0:00:19]} h6 {[%emt 0:01:24]} 44. Re8 {[%emt 0:01:30]} Rf5+ {[%emt 0:00:58]} 45. Ke2 {[%emt 0:00:22]} Rg5 {[%emt 0:00:31]} 46. Kd3 {[%emt 0:02:02]} Rc5 {[%emt 0:02:13]} 47. Kd4 {[%emt 0:09:08][%cal Oe8f8] Intending Rxf8! and mate.} Rg5 {[%emt 0:04:36]} 48. Be6 {[%emt 0:02:34]} Ra5 49. Bd5 {[%emt 0:01:57]} Ra4 {[%emt 0:03:17] White must now prevent ...b3+.} 50. Bb3 {[%emt 0:01:53]} Ra5 {[%emt 0:01:01]} 51. f4 {[%emt 0:01:35]} Rh5 {[%emt 0:07:24]} 52. Re2 {[%emt 0:00:46]} Rh3 {[%emt 0:01:49]} 53. Rg2 {[%emt 0:01:33]} Rh1 {[%emt 0:00:34]} 54. g4 {[%emt 0:03:40]} Re1 {[%emt 0:02:47]} 55. Rf2 {[%emt 0:05:35]} (55. Kd3 $142) 55... Rg1 $16 {[%emt 0:00:17]} 56. Be6 {[%emt 0:00:33]} Re1 {[%emt 0:03:40]} 57. Kd5 {[%emt 0:00:16]} Re3 {[%emt 0:01:03]} 58. Rb2 {[%emt 0:03:23]} Kg6 {[%emt 0:01:47] [#]} (58... Be7 $142 59. Rc2 Rc3) 59. Kd4 $1 {[%emt 0:01:33]} Re1 {[%emt 0:02:15] [#]} 60. Rc2 $1 {[%emt 0:00:08][%cal Oc2c8]} Kg7 {[%emt 0:01:15]} 61. Rc6 {[%emt 0:00:25]} Re2 {[%emt 0:00:17] [#]} (61... Rd1+ $16 62. Ke4 Rd6 63. Rxd6 Bxd6) 62. Kd3 {[%emt 0:00:47]} (62. Bd5 $1 $18) 62... Re1 {[%emt 0:00:04]} 63. Ra6 {[%emt 0:01:42]} Be7 {[%emt 0:00:34]} (63... Rd1+ $16 {might work better.} 64. Ke4 Rd6 65. Rxd6 Bxd6) 64. Rc6 {[%emt 0:00:54]} ({White should try} 64. Bb3 $18) 64... Bf8 $1 {[%emt 0:00:04]} 65. Ra6 {[%emt 0:00:04]} (65. Bb3 $16) 65... Be7 $1 $18 {[%emt 0:00:03]} 66. Bd5 {[%emt 0:00:41]} Rg1 {[%emt 0:00:15] [#]} 67. Ra7 {[%emt 0:00:18]} (67. Ra8 $1 $16 {[%cal Ra8g8] White wants to mate with Rg8+.} Bf8 68. Be6) 67... Bf8 $14 {[%emt 0:00:19]} 68. Bf3 {[%emt 0:00:20]} Rf1 {[%emt 0:00:54]} 69. Ke4 {[%emt 0:00:15]} (69. Ke2 $14 Rf2+ 70. Kxf2 Bc5+ 71. Kg3 Bxa7 72. Bd5) 69... Ra1 {[%emt 0:00:20] Weighted Error Value: White=0.24 (precise) /Black=0.27 (precise)} 1/2-1/2